Cogmind - Beta 17 @@@ ROGUE MODE // 2026.07.05 @ 00:53:39 Player: Bryce J Result: Destroyed by S-10 Pest with Light Assault Rifle Performance ------------- Evolutions (0) 0 Regions Visited (4) 800 Robots Destroyed (6) 30 Value Destroyed (69) 69 Prototype IDs (2) 40 Alien Tech Used (0) 0 Bonus (300) 300 TOTAL SCORE: 1239 Bonus ------- Aligned with FarCom 300 Cogmind --------- Core Integrity 0/250 Matter 295/300 Energy 98/100 System Corruption 0% Temperature Cool (0) Movement Core (50) Location -9/Mines Parts ------- > --- POWER (1) -------- (None) > --- PROPULSION (2) --- (None) > --- UTILITY (2) ------ (None) > --- WEAPON (2) ------- (None) > --- INVENTORY (5) ---- Wheel Medium Storage Unit Large Storage Unit Improved Terrain Scanner Trap Reconfigurator Peak State ------------ > --- POWER ------------ (None) > --- PROPULSION ------- Wheel > --- UTILITY ---------- Large Storage Unit Trap Reconfigurator > --- WEAPON ----------- Mining Laser Plasma Flamer > --- INVENTORY -------- Aluminum Leg Aluminum Leg Wheel Medium Storage Unit Large Storage Unit Large Storage Unit High-capacity Storage Unit Improved Terrain Scanner Seismic Detector Light Assault Rifle [Rating: 18] Favorites ----------- Power Light Ion Engine Engine Light Ion Engine Propulsion Wheel Wheel Wheel Utility Seismic Detector Device Seismic Detector Storage Medium Storage Unit Weapon Light Assault Rifle Ballistic Gun Light Assault Rifle Special Weapon Plasma Flamer Slashing Weapon Mining Claw Build | -11 -10 -10 -10 -9 ------- Run | Yrd Mat Min Exi Min Slots Evolved . | . . . . . Power . | . . . . . Propulsion . | . . . . . Utility . | . . . . . Weapon . | . . . . . Parts Attached 16 | 8 2 . 4 2 Power 1 | 1 . . . . Engine 1 | 1 . . . . Core . | . . . . . Reactor . | . . . . . Propulsion 3 | 3 . . . . Treads . | . . . . . Leg . | . . . . . Wheel 3 | 3 . . . . Hover . | . . . . . Flight . | . . . . . Utility 7 | 2 1 . 4 . Device 3 | 2 . . 1 . Storage 4 | . 1 . 3 . Processor . | . . . . . Hackware . | . . . . . Protection . | . . . . . Artifact . | . . . . . Weapon 5 | 2 1 . . 2 Energy Gun . | . . . . . Energy Cannon . | . . . . . Ballistic Gun 2 | 2 . . . . Ballistic Cannon . | . . . . . Launcher . | . . . . . Special Weapon 2 | . . . . 2 Impact Weapon . | . . . . . Slashing Weapon 1 | . 1 . . . Piercing Weapon . | . . . . . Special Melee Weapon . | . . . . . Unidentified Prototypes 2 | . . . 2 . Parts Lost 6 | . . . . 6 Power 1 | . . . . 1 Propulsion 2 | . . . . 2 Utility . | . . . . . Weapon 3 | . . . . 3 Highest Loss Streak 6 | . . . . 6 To Critical Strikes . | . . . . . Average Backups 8 | 2 6 9 9 10 Power . | . . . . . Propulsion 2 | 2 3 3 2 2 Utility 4 | . 3 4 5 5 Weapon 1 | . . 1 1 1 Tool/Special . | . . . . . Unused Backups 9 | 1 . . 2 6 Power . | . . . . . Propulsion 4 | 1 . . . 3 Utility 5 | . . . 2 3 Weapon . | . . . . . Tool/Special . | . . . . . Average Slot Usage (%) 97 | . 100 99 99 75 Engine 13 | . 14 14 14 10 Wheel 27 | . 28 28 28 20 Device 13 | . 16 14 13 11 Storage 13 | . 11 14 13 11 Ballistic Gun 26 | . 22 27 28 17 Peak Build Rating 18 | 9 9 8 17 18 Average Rating 9 | 5 7 7 11 13 On Entrance 8 | . 9 8 8 16 Avg Prop Armor Cover (%) . | . . . . . Naked Turns 15 | . . . . 15 Heaviest Build 27 | 8 17 17 27 27 Greatest Support 20 | 20 20 20 20 20 Greatest Overweight (x) 8 | . . . 1 8 Average Overweight (x) . | . . . . . Largest Inventory Capacity 35 | 5 10 10 35 15 Average Capacity 10 | 5 9 10 11 13 Most Carried 11 | 4 9 10 11 11 Average Carried 8 | 2 7 9 9 9 Final Capacity 15 | 5 10 10 15 5 Final Carried 11 | 3 9 10 11 5 Class Distribution -------------------- 100% | Mutant Dominant Class ---------------- Mutant | -10/Materials Mutant | -10/Mines Mutant | -10/Exiles Mutant | -9/Mines Resources | -11 -10 -10 -10 -9 ----------- Run | Yrd Mat Min Exi Min Matter Collected 426 | 320 . 36 . 70 Remotely . | . . . . . Salvage Created 115 | 92 . . . 23 Parts 13 | 9 . . . 4 Haulers Intercepted . | . . . . . Recyclers Shooed . | . . . . . Parts Field Recycled . | . . . . . Retrieved Matter . | . . . . . Parts Self-Destructed . | . . . . . Prevented . | . . . . . Parts Restored . | . . . . . Kills | -11 -10 -10 -10 -9 ------- Run | Yrd Mat Min Exi Min Combat Hostiles Destroyed 3 | 1 . . . 2 Guns 3 | 1 . . . 2 Classes Destroyed 4 | 3 . . . 1 Worker 1 | 1 . . . . Tunneler 2 | 2 . . . . Swarmer 2 | . . . . 2 Grunt 1 | 1 . . . . Best Kill Streak 2 | 2 . . . 2 Combat Bots Only 2 | 1 . . . 2 Max Kills in Single Turn 1 | 1 . . . 1 Gunslinging . | . . . . . Exploded . | . . . . . Melee . | . . . . . Uniques/NPCs Destroyed . | . . . . . Combat | -11 -10 -10 -10 -9 -------- Run | Yrd Mat Min Exi Min Hostile Shots Fired 93 | 8 . . . 85 Missed 27 | 2 . . . 25 Hits 66 | 6 . . . 60 Projectile 66 | 6 . . . 60 Critical Strikes 1 | . . . . 1 Damage Taken 646 | 66 . . . 580 Core 254 | 10 . . . 244 Absorbed by Shields . | . . . . . Core Remaining (%) 96 | 96 . . . . Volleys Fired 27 | 10 6 . . 11 Largest 2 | 2 1 . . 2 Hottest 100 | 40 20 . . 100 Shots Fired 40 | 20 6 . . 14 Gun 39 | 20 6 . . 13 Cannon . | . . . . . Launcher . | . . . . . Special 1 | . . . . 1 Kinetic 39 | 20 6 . . 13 Thermal 1 | . . . . 1 Explosive . | . . . . . Electromagnetic . | . . . . . Robot Hit Streak 5 | 3 . . . 5 Robot Miss Streak 6 | 2 . . . 6 Penetration Max . | . . . . . Secondary Targets 1 | . . . . 1 Max Gunslinging Chain 1 | . . . . 1 Shots Hit Robots 15 | 9 . . . 6 Core Hits 9 | 5 . . . 4 Critical Kills . | . . . . . Critical Parts Destroyed . | . . . . . Critical Strikes . | . . . . . Melee Attacks 3 | . 3 . . . Impact . | . . . . . Slashing 3 | . 3 . . . Piercing . | . . . . . Sneak Attacks . | . . . . . Combat Hostiles . | . . . . . Follow-up Attacks . | . . . . . Damage Inflicted 162 | 109 . . . 53 Guns 162 | 109 . . . 53 Cannons . | . . . . . Explosions . | . . . . . Melee . | . . . . . Ramming . | . . . . . Kinetic 162 | 109 . . . 53 Thermal . | . . . . . Explosive . | . . . . . Electromagnetic . | . . . . . Impact . | . . . . . Slashing . | . . . . . Piercing . | . . . . . Highest Corruption . | . . . . . Average Corruption . | . . . . . Corruption Purged . | . . . . . Corruption Blocked . | . . . . . Overload Shots . | . . . . . Overflow Damage . | . . . . . Projectiles . | . . . . . Explosions . | . . . . . Melee . | . . . . . Knockbacks . | . . . . . Impact . | . . . . . Kinetic . | . . . . . Secondary . | . . . . . Self-Inflicted Damage . | . . . . . Shots . | . . . . . Rammed . | . . . . . Targets Rammed . | . . . . . Kicked . | . . . . . Crushed . | . . . . . Highest Temperature 56 | 6 . . . 56 Average Temperature 17 | 6 . . . 24 Received Heat Transfer 216 | 36 . . . 180 Siege Activations . | . . . . . Martial Activations . | . . . . . Shielding Activations . | . . . . . Robots Disrupted . | . . . . . Combat Hostiles . | . . . . . Robots Corrupted . | . . . . . Combat Hostiles . | . . . . . Parts Fried . | . . . . . Impact Corruptions . | . . . . . Robots Melted . | . . . . . Combat Hostiles . | . . . . . Parts Melted . | . . . . . Heat Transferred . | . . . . . Parts Sabotaged . | . . . . . Parts Stolen . | . . . . . Parts Stripped . | . . . . . Power Chain Reactions . | . . . . . Alert | -11 -10 -10 -10 -9 ------- Run | Yrd Mat Min Exi Min Maximum Alert Level . | . . . . . Low Security (%) 100 | 100 100 100 . 100 Level 1 . | . . . . . Level 2 . | . . . . . Level 3 . | . . . . . Level 4 . | . . . . . Level 5 . | . . . . . High Security . | . . . . . Max Security . | . . . . . Peak Influence 60 | 20 30 . . 60 Initial . | . . . . . Average 4 | 4 7 . . 12 Influence Increases 137 | 35 32 . . 70 Destroy 0b10 Robot/C 60 | 20 . . . 40 Destroy 0b10 Robot/NC 15 | 15 . . . . Select Force Hacks 30 | . 30 . . . Destroy Structure 2 | . 2 . . . Lose Combat Pursuer 30 | . . . . 30 Influence Decreases 137 | 35 30 2 . 70 Entered New Map 2 | . . 2 . . Time Decay 95 | 35 30 . . 30 Lost Part 40 | . . . . 40 Squads Dispatched 1 | . 1 . . . Investigation 1 | . 1 . . . Extermination . | . . . . . Reinforcement . | . . . . . Assault . | . . . . . Garrison . | . . . . . Intercept . | . . . . . Searches Triggered . | . . . . . Construction Impeded . | . . . . . Haulers Reinforced . | . . . . . Active Scanning Responses . | . . . . . Cargo Convoy Interrupts . | . . . . . Stealth | -11 -10 -10 -10 -9 --------- Run | Yrd Mat Min Exi Min Distress Signals 1 | . 1 . . . Communications Jammed . | . . . . . Distress Signals . | . . . . . Times Spotted 11 | 1 2 . . 8 Peak Tracking Total 4 | 1 2 . . 4 Tactical Retreats 1 | . . . . 1 Traps | -11 -10 -10 -10 -9 ------- Run | Yrd Mat Min Exi Min Traps Triggered . | . . . . . Indirectly . | . . . . . Trap Hack Attempts . | . . . . . Triggered . | . . . . . Disarmed . | . . . . . Reprogrammed . | . . . . . Reused . | . . . . . Traps Extracted . | . . . . . Installed . | . . . . . Triggered . | . . . . . Machines | -11 -10 -10 -10 -9 ---------- Run | Yrd Mat Min Exi Min Machines Disabled . | . . . . . Max in Single Turn . | . . . . . Machines Repaired . | . . . . . Machines Dismantled . | . . . . . Machines Sabotaged . | . . . . . Overloaded Fab Kills . | . . . . . Hacking | -11 -10 -10 -10 -9 --------- Run | Yrd Mat Min Exi Min Machines Accessed 4 | . 1 . 3 . Terminals . | . . . . . Fabricators . | . . . . . Repair Stations . | . . . . . Recycling Units 1 | . 1 . . . Scanalyzers . | . . . . . Garrison Access . | . . . . . Total Hacks 41 | . 1 . 40 . Successful 41 | . 1 . 40 . Failed . | . . . . . Catastrophic . | . . . . . Database Lockouts . | . . . . . Manual 6 | . 2 . 4 . Terminals . | . . . . . Fabricators . | . . . . . Repair Stations . | . . . . . Recycling Units 1 | . 1 . . . Scanalyzers . | . . . . . Garrison Access . | . . . . . Terminal Hacks 40 | . . . 40 . Record 40 | . . . 40 . Fabricator Hacks . | . . . . . Repair Station Hacks . | . . . . . Recycling Unit Hacks . | . . . . . Scanalyzer . | . . . . . Garrison Access Hacks . | . . . . . Unauthorized Hacks 1 | . 1 . . . Terminals . | . . . . . Fabricators . | . . . . . Repair Stations . | . . . . . Recycling Units 1 | . 1 . . . Tunnel 1 | . 1 . . . Scanalyzers . | . . . . . Garrison Access . | . . . . . Data Cores Recovered . | . . . . . Used . | . . . . . Hacking Detections . | . . . . . Full Trace Events . | . . . . . Feedback Events . | . . . . . Feedback Blocked . | . . . . . Robot Schematics Acquired . | . . . . . Robots Built . | . . . . . Authchips . | . . . . . Time . | . . . . . Total Robot Build Rating . | . . . . . Part Schematics Acquired . | . . . . . Parts Built . | . . . . . Authchips . | . . . . . Time . | . . . . . Total Part Build Rating . | . . . . . Part Studies Acquired . | . . . . . Parts Repaired . | . . . . . Time . | . . . . . Parts Recycled . | . . . . . Recycled Matter . | . . . . . Retrieved Matter . | . . . . . Retrieved Components . | . . . . . Parts Scanalyzed . | . . . . . Part Schematics Acquired . | . . . . . Parts Damaged . | . . . . . Bothacking | -11 -10 -10 -10 -9 ------------ Run | Yrd Mat Min Exi Min Used RIF Installer . | . . . . . Robots Hacked . | . . . . . Non-combat . | . . . . . Combat . | . . . . . Robot Hacks Applied . | . . . . . Relay Couplers Released . | . . . . . Fabnet Peak Effective % . | . . . . . Robots Rewired . | . . . . . Allies Hacked . | . . . . . Hacks Repelled . | . . . . . Allies | -11 -10 -10 -10 -9 -------- Run | Yrd Mat Min Exi Min Total Allies . | . . . . . Largest Group . | . . . . . Highest-Rated Group . | . . . . . Highest-Rated Ally . | . . . . . Total Orders . | . . . . . Ally Attacks . | . . . . . Total Damage . | . . . . . Kills . | . . . . . Allies Corrupted . | . . . . . Allies Melted . | . . . . . Intel | -11 -10 -10 -10 -9 ------- Run | Yrd Mat Min Exi Min Active Infowar (turns) 838 | 40 94 247 457 . Terrain 45 | 40 5 . . . Seismic 822 | 24 94 247 457 . Robot Analysis Total . | . . . . . Derelict Logs Recovered 3 | . . 3 . . Drone Launches . | . . . . . Drone Recoveries . | . . . . . Exploration | -11 -10 -10 -10 -9 ------------- Run | Yrd Mat Min Exi Min Turns Passed 1413 | 156 94 247 812 104 Spaces Moved 1486 | 133 83 265 918 87 Core 45 | 15 . . . 30 Treads . | . . . . . Legs . | . . . . . Wheels 1441 | 118 83 265 918 57 Hover . | . . . . . Flight . | . . . . . Fastest Speed 50 | 50 80 80 80 50 Average Speed 83 | 76 80 80 85 88 Slowest Speed 450 | 80 80 80 95 450 Overloaded Moves . | . . . . . Propulsion Burnouts . | . . . . . Robots Hopped . | . . . . . Potential Cave-ins . | . . . . . Cave-ins Triggered . | . . . . . Exploration Rate (%) 45 | 5 24 71 92 35 Regions Visited 4 Branch Regions 3 Pre-discovered Areas 3 | . 1 1 1 . Known Exits Taken . | . . . . . Unknown Exits Taken 4 | 1 1 1 1 . Scrap Searched 3 | . . 2 . 1 Spaces Dug 2 | . 2 . . . Terrain Destroyed 2 | . 2 . . . Melee 2 | . 2 . . . Projectile . | . . . . . AOE . | . . . . . Terrain Rammed . | . . . . . Walls Destroyed . | . . . . . Machines Disabled . | . . . . . Actions | -11 -10 -10 -10 -9 --------- Run | Yrd Mat Min Exi Min Total 1614 | 166 99 300 947 102 Wait 40 | 9 . 31 . . Move 1482 | 132 82 264 917 87 Hop . | . . . . . Pick Up 27 | 4 5 2 15 1 Fast Attach 14 | 8 1 . 5 . Attach 2 | . . 1 . 1 Detach 3 | 1 1 1 . . Swap 3 | . 1 . 1 1 Drop 13 | 2 . 1 9 1 Fire 27 | 10 6 . . 11 Melee 3 | . 3 . . . Ram . | . . . . . Kick . | . . . . . Crush . | . . . . . Escape Stasis . | . . . . . Rewire . | . . . . . Trap . | . . . . . Miscellaneous . | . . . . . Route ------- -11/Scrapyard -10/Materials -10/Mines (discovered 3 exits: [*Mat x2] / *Exi) -10/Exiles (discovered 2 exits: [*Min x2]) -9/Mines History --------- Turn | Location | Event 2 | -11/Scrapyard | Met Revision 17 62 | -11/Scrapyard | Discovered new exit (range 8) 157 | -11/Scrapyard | Entered Materials 240 | -10/Materials | Discovered new exit (range 12) 251 | -10/Materials | Entered Mines 312 | -10/Mines | Build established: Mutant 324 | -10/Mines | A weapon hastily lodged in a ceiling crevice suddenly fell to the ground 370 | -10/Mines | Learned location of 1 exit from Materials 378 | -10/Mines | Discovered new exit (range 10) 451 | -10/Mines | Discovered new exit (range 6) 481 | -10/Mines | Learned Materials trap positions 491 | -10/Mines | Deemed a non-threat by the Exiles lab entrance 492 | -10/Mines | Discovered new exit (range 5) 498 | -10/Mines | Entered Exiles 517 | -10/Exiles | Met 8R-AWN 531 | -10/Exiles | Met EX-HEX 557 | -10/Exiles | Met EX-BIN 640 | -10/Exiles | Met EX-DEC 643 | -10/Exiles | Learned location of Zion (-7) 676 | -10/Exiles | Discovered new exit (range 10) 751 | -10/Exiles | Visited The Gauntlet 930 | -10/Exiles | Aligned with FarCom system 931 | -10/Exiles | Given EX-Vault access code 950 | -10/Exiles | Opened EX-Vault 958 | -10/Exiles | Found Prototype Storage 961 | -10/Exiles | Identified Superbattery 968 | -10/Exiles | Found Prototype Device 968 | -10/Exiles | Identified Trap Reconfigurator 1016 | -10/Exiles | Warned to stay clear of 0b10 Research branches 1086 | -10/Exiles | Discovered new exit (range 14) 1310 | -10/Exiles | Left Exiles lab with Trap Reconfigurator 1310 | -10/Exiles | Entered Mines 1396 | -9/Mines | Core integrity fell below 50% 1399 | -9/Mines | Released all parts (2) 1402 | -9/Mines | Core integrity fell below 20% 1414 | -9/Mines | Found a hidden stash of uninstalled traps 1414 | -9/Mines | Destroyed by S-10 Pest with Light Assault Rifle Last Messages --------------- Assault Rifle destroyed. R-06 Scavenger collects Flight Unit. Acquired 10 matter. Wheel destroyed. Lgt. Ion Engine destroyed. R-06 Scavenger collects Flight Unit. To regain energy, simply wait via the mouse wheel, '.', or KP5. Also make sure your per-turn energy generation is a net positive, and consider deactivating power-draining parts if not. Wheel destroyed. Mining Laser destroyed. Plasma Flamer destroyed. Released Trap Reconfigurator. Released Lrg. Storage Unit. Dropped Hcp. Storage Unit. Acquired Trap Reconfigurator. Critical hit (Burn: +37). A stash of uninstalled traps is collected here! Map ----- +----------------------------------------------------+ | ??????????# #?????????" % ####?? | | ??????????# #### ## #?????????#X # ### | | ??????????# #??# #?# ##?????????# %# | | ??????????# #??# #??###??????????### ## | | ??????????# #??# #???????????????## [ ##? | | ?????????## #??# #???????????????# !! #?? | | ?????????# #??? #???????????????# ! = ##?? | | ?????????# #??? #???????????????## != ##??? | | ?????????# ##?? #?????????####???##### ##???? | | ?????????## ### #?????????? #???????# ##????? | | ??????????## ##?????????# #???????# #?????? | | ???????????## #?????????# ######### #?????? | | ???????????## #?????????# #?????? | | ????######## #?????????# #???? | | ???## ##?????????# ###### #?? | | ???# #####??????????# #????## #?? | | ???# ##??????????????# #?????## #?? | | ???# #???????????????# #??????## ##?? | | ???## #????????????###s#???????## #??? | | ????## #???????????# #????????## ?? | | ?????# #???????????# ###??????????#### #? | | ?????## #?????????###s#???????????????? #? | | ??????##### ####????????## ##????????????????#? | | ??????????####??????????##&& ###???????????????? | | ???????????????????????##& & #???????????????? | | ???????????????????????# @& #??????????????? | | ???????????????????????## ## #??????????????? | | ????????????????????????###### ##??????????????? | | ?????????????????????????????? ##???????????????? | | ?????????????????????????????? #????????????????? | | ?????????????????????????????? #????????????????? | | ?????????????????????????????? #????????????????? | | ?????????????????????????????? #????????????????? | | ?????????????????????????????? #????????????????? | | ?????????????????????????????? #????????????????? | | ??????????????????????????????? #????????????????? | | ??????????????????????????????? ?????????????????? | | ?????????????????????????????????????????????????? | | ?????????????????????????????????????????????????? | | ?????????????????????????????????????????????????? | | ?????????????????????????????????????????????????? | | ?????????????????????????????????????????????????? | | ?????????????????????????????????????????????????? | | ?????????????????????????????????????????????????? | | ?????????????????????????????????????????????????? | | ?????????????????????????????????????????????????? | | ?????????????????????????????????????????????????? | | ?????????????????????????????????????????????????? | | ?????????????????????????????????????????????????? | | ?????????????????????????????????????????????????? | +----------------------------------------------------+ Best States ------------- Heat Dissipation 25 Energy Generation 10 Energy Capacity 125 Matter Stores 300 Matter Capacity 300 Sight Range 16 Terrain Scan Range 16 Terrain Scan Density 10 Evasion (%) 50 Item Schematics ----------------- None Robot Schematics ------------------ None Fabricated ------------ Nothing Repaired ---------- Nothing Studied --------- None Alien Tech Used ----------------- None Achievements -------------- Brute Force Librarian Challenges ------------ None Game ------ Seed DrainedDefenseAmplifier Manual? 0 Play Time 00:28:57 Cumulative 1.4 hours Start 2026.07.05 @ 00:22:30 End 2026.07.05 @ 00:53:39 Sessions 1 Manual Loads 0 Difficulty Rogue Special Mode None Game No. 3 Rogue 3 Adventurer 0 Explorer 0 Win Type - Total 0 Types 0/0/0/0/0/0/0/0/0/0 Lore% 5 Gallery% 4 Achievement% 14 Wizard Run 0 Options --------- Layout 1 ASCII 0 Keyboard 1 Movement Arrows Keybinds 0 Fullscreen 0 Font 24/Smallcaps Map View 50x35 Zoom Use 0% Tactical HUD 0 Map Filters NONE Filters NONE Steam 1 RUN: 38ba612b-fbe6-4231-a70d-d1863a83efe1